bitfinex/quotes_SOLUSD_20241021
["timestamp","ask_amount","ask_price","bid_price","bid_amount"]
[1729537229840,23.776884,166.19,166.07,28.07237989]
[1729537230630,22.5053,166.2,166.08,23.776884]
[1729537230848,22.5053,166.2,166.09,20.0]
[1729537244577,22.5053,166.2,166.09,8.07237989]
[1729537244760,22.5053,166.2,166.1,20.0]
[1729537258382,22.5053,166.2,166.12,20.0]
[1729537259493,22.5053,166.2,166.13,20.0]
[1729537260768,22.5053,166.2,166.09,20.0]
[1729537261083,23.776884,166.19,166.06,18.95035897]
[1729537262181,23.776884,166.19,166.07,20.0]
[1729537263882,6.5333,166.18,166.07,20.0]
[1729537264070,23.776884,166.15,166.06,8.07237989]
[1729537264271,6.5333,166.14,166.03,8.07237989]
[1729537265774,6.5333,166.14,166.04,20.0]
[1729537271891,6.5333,166.14,166.06,20.0]
[1729537272078,6.5333,166.14,166.06,28.07237989]
[1729537288276,6.5333,166.14,166.06,20.0]
[1729537288499,6.5333,166.14,166.02,11.09637109]
[1729537288993,6.5333,166.14,166.03,8.07237989]
[1729537289777,6.5333,166.14,166.04,20.0]
[1729537290176,6.5333,166.14,166.06,20.0]
[1729537290401,6.5333,166.14,166.06,28.07237989]
[1729537290599,6.5333,166.14,166.08,20.0]
[1729537290977,6.5333,166.14,166.02,8.07237989]
[1729537291983,15.9337,166.12,166.02,8.07237989]
[1729537292198,15.9337,166.12,166.03,20.0]
[1729537292497,23.776884,166.11,166.02,8.07237989]
[1729537292701,6.649,166.1,166.02,8.07237989]
[1729537293897,6.649,166.1,166.03,20.0]
[1729537294598,23.776884,166.09,166.03,20.0]
[1729537294782,16.1346,166.08,165.97,8.07237989]
[1729537295888,16.1346,166.08,165.98,20.0]
[1729537296080,16.1346,166.08,165.99,8.07237989]
[1729537296280,16.1346,166.08,166.0,20.0]
[1729537301007,23.776884,166.07,166.0,20.0]
[1729537310312,23.776884,166.07,165.96,15.0059]
[1729537310313,23.776884,166.07,165.97,20.0]
[1729537318518,24.0431,166.06,165.95,8.07237989]
[1729537318696,21.8724,166.04,165.92,15.461]
[1729537318901,15.8498,166.04,165.92,15.461]
[1729537320216,23.776884,166.03,165.92,15.461]
[1729537320418,6.3031,166.02,165.9,15.30470908]
[1729537321002,6.3031,166.02,165.91,20.0]
[1729537322317,23.776884,166.01,165.91,20.0]
[1729537322519,23.776884,166.01,165.9,7.62407489]
[1729537323817,23.776884,166.01,165.91,20.0]
[1729537324722,6.3031,166.02,165.91,27.62407489]
[1729537329216,23.776884,166.01,165.91,27.62407489]
[1729537332310,6.3031,166.02,165.93,20.0]
[1729537332537,6.3031,166.02,165.94,23.776884]
[1729537332717,6.0644,166.07,165.97,20.0]
[1729537333028,16.3636,166.08,165.97,20.0]
[1729537333029,16.3636,166.08,166.0,23.776884]
[1729537333229,6.0644,166.12,166.01,20.0]
[1729537333424,22.428,166.12,166.01,20.0]
[1729537335021,23.776884,166.11,166.01,20.0]
[1729537343943,22.428,166.12,166.02,7.62407489]
[1729537344144,22.428,166.12,166.03,20.0]
[1729537349436,22.428,166.12,166.04,20.0]
[1729537349737,6.0644,166.12,166.04,27.62407489]
[1729537349927,22.5172,166.16,166.04,27.62407489]
[1729537350737,23.776884,166.15,166.04,27.62407489]
[1729537351242,22.5172,166.16,166.04,27.62407489]
[1729537355032,22.5172,166.16,166.05,23.776884]
[1729537355348,22.5172,166.16,166.06,20.0]
[1729537356550,22.5172,166.16,166.08,20.0]
[1729537356725,23.0968,166.2,166.08,20.0]
[1729537358435,23.776884,166.19,166.08,20.0]
[1729537359656,23.776884,166.19,166.07,20.0]
[1729537363149,23.776884,166.19,166.08,20.0]
[1729537364868,23.0968,166.2,166.08,20.0]
[1729537365351,23.0968,166.2,166.1,20.0]
[1729537367158,23.0968,166.2,166.09,20.0]
[1729537372648,23.0968,166.2,166.09,23.0528939]
[1729537372844,23.776884,166.19,166.09,23.0528939]
[1729537373042,23.776884,166.19,166.09,20.0]
[1729537377174,23.776884,166.19,166.06,3.1230005]
[1729537377364,23.776884,166.19,166.08,20.0]
[1729537383955,23.776884,166.19,166.08,27.62407489]
[1729537388777,23.776884,166.19,166.08,7.62407489]
[1729537388965,16.1756,166.16,166.04,9.28127301]
[1729537389366,16.1756,166.16,166.05,7.62407489]
[1729537389672,6.5961,166.18,166.06,4.6104]
[1729537389866,6.5961,166.18,166.07,7.62407489]
[1729537390184,6.5961,166.18,166.08,20.0]
[1729537390353,6.5961,166.18,166.08,7.62407489]
[1729537390555,6.5961,166.18,166.09,7.62407489]
[1729537390775,6.5961,166.18,166.1,20.0]
[1729537395358,6.5961,166.18,166.1,27.62407489]
[1729537396177,16.1756,166.2,166.1,27.62407489]
[1729537399070,16.1756,166.2,166.1,30.66055915]
[1729537399272,16.1756,166.2,166.11,7.62407489]
[1729537399479,16.1756,166.2,166.12,20.0]
[1729537409291,23.776884,166.19,166.08,16.2293]
[1729537409894,6.007,166.18,166.06,9.21737552]
[1729537410694,23.776884,166.17,166.07,20.0]
[1729537410884,15.64,166.16,166.07,20.0]
[1729537421016,15.64,166.16,166.07,27.62407489]
[1729537429792,15.64,166.16,166.07,20.0]
[1729537431919,15.64,166.16,166.07,17.0]
[1729537437728,15.64,166.16,166.06,3.01769057]
[1729537438025,15.64,166.16,166.07,20.0]
[1729537441222,6.007,166.18,166.09,20.0]
[1729537441437,6.007,166.18,166.11,20.0]
[1729537441940,6.007,166.18,166.07,20.0]
[1729537442131,6.007,166.18,166.09,20.0]
[1729537442312,6.007,166.18,166.07,20.0]
[1729537447216,6.007,166.18,166.09,20.0]
[1729537447419,6.007,166.18,166.09,27.62407489]
[1729537449831,6.007,166.18,166.07,20.0]
[1729537453032,6.007,166.18,166.07,27.62407489]
[1729537457130,6.007,166.18,166.09,20.0]
[1729537458821,6.007,166.18,166.11,20.0]
[1729537464245,6.007,166.18,166.09,20.0]
[1729537464544,6.007,166.18,166.07,6.19377396]
[1729537464545,16.2389,166.17,166.07,6.19377396]
[1729537464746,23.776884,166.16,166.06,1.04729537]
[1729537465049,16.2389,166.17,166.06,1.04729537]
[1729537465448,16.2389,166.17,166.05,9.22922344]
[1729537465752,16.2389,166.17,166.07,7.62407489]
[1729537465931,16.2389,166.17,166.08,23.776884]
[1729537466121,16.2389,166.17,166.08,43.776884]
[1729537466327,16.2389,166.17,166.08,51.40095889]
[1729537476233,16.2389,166.17,166.1,43.776884]
[1729537476441,21.5094,166.22,166.1,67.81205889]
[1729537476762,21.5094,166.22,166.12,43.776884]
[1729537477257,21.5094,166.22,166.12,51.40095889]
[1729537477548,21.5094,166.22,166.14,20.0]
[1729537480066,21.5094,166.22,166.13,20.0]
[1729537482461,21.5094,166.22,166.15,20.0]
[1729537482759,21.5094,166.22,166.17,20.0]
[1729537492459,21.694,166.28,166.21,20.0]
[1729537492762,21.694,166.28,166.21,27.62407489]
[1729537493159,21.694,166.28,166.22,23.776884]
[1729537493354,21.694,166.28,166.23,20.0]
[1729537494755,0.604841,166.3,166.23,20.0]
[1729537496751,22.4489,166.36,166.25,20.0]
[1729537496955,19.75961725,166.42,166.25,20.0]
[1729537496956,41.06190907,166.42,166.3,23.776884]
[1729537497268,22.4489,166.42,166.31,20.0]
[1729537497456,22.4489,166.42,166.32,23.776884]
[1729537497660,22.4489,166.42,166.33,20.0]
[1729537500670,6.0098,166.4,166.27,20.0]
[1729537501078,23.776884,166.39,166.26,7.62407489]
[1729537501366,23.776884,166.41,166.26,7.62407489]
[1729537502358,23.776884,166.41,166.28,23.776884]
[1729537502857,23.776884,166.41,166.29,20.0]
[1729537504566,22.4489,166.42,166.29,20.0]
[1729537504760,22.4489,166.42,166.31,20.0]
[1729537506066,28.1544,166.4,166.27,23.776884]
[1729537506269,29.786784,166.39,166.25,23.776884]
[1729537506677,22.1446,166.4,166.21,7.72407489]
[1729537506678,22.1446,166.36,166.21,7.62407489]
[1729537506981,29.788484,166.35,166.2,15.4584]
[1729537507156,6.0118,166.34,166.2,18.47190457]
[1729537507565,6.0122,166.33,166.2,15.4584]
[1729537507766,29.788584,166.35,166.2,15.4584]
[1729537508564,23.776884,166.35,166.2,15.4584]
[1729537508872,23.776884,166.35,166.22,23.776884]
[1729537509975,23.776884,166.35,166.23,20.0]
[1729537510755,29.788384,166.35,166.23,20.0]
[1729537511579,23.776884,166.35,166.23,20.0]
[1729537511767,23.776884,166.33,166.21,43.776884]
[1729537511967,6.0115,166.35,166.21,43.776884]
[1729537512365,17.74,166.32,166.21,43.776884]
[1729537515476,23.776884,166.35,166.21,23.776884]
[1729537515689,29.788384,166.35,166.21,23.776884]
[1729537519782,27.562,166.32,166.2,15.4584]
[1729537519967,27.562,166.32,166.18,13.88606777]
[1729537519968,6.0129,166.31,166.19,20.0]
[1729537520163,29.789984,166.31,166.18,6.15125212]
[1729537520564,6.0132,166.3,166.18,6.15125212]
[1729537520765,6.0136,166.29,166.18,6.15125212]
[1729537520984,21.1977,166.28,166.18,6.15125212]
[1729537521776,17.74,166.27,166.18,6.15125212]
[1729537522094,17.74,166.27,166.19,20.0]
[1729537523467,17.74,166.27,166.18,6.15125212]
[1729537523680,6.0146,166.26,166.18,6.15125212]
[1729537523877,17.74,166.27,166.18,6.15125212]
[1729537525272,17.74,166.27,166.19,20.0]
[1729537525981,23.776884,166.26,166.19,20.0]
[1729537526289,29.791584,166.26,166.19,20.0]
[1729537527889,23.776884,166.26,166.19,20.0]
[1729537535193,23.776884,166.27,166.19,20.0]
[1729537537178,21.1977,166.28,166.19,20.0]
[1729537540209,21.1977,166.28,166.18,20.0]
[1729537540513,21.1977,166.28,166.18,26.17333819]
[1729537542705,21.1977,166.28,166.18,29.29335277]
[1729537543088,23.776884,166.27,166.18,6.17333819]
[1729537545583,23.776884,166.27,166.19,20.0]
[1729537547291,21.1977,166.28,166.19,20.0]
[1729537552580,23.776884,166.27,166.18,6.17333819]
[1729537554316,23.776884,166.27,166.19,20.0]
[1729537562716,21.1977,166.28,166.19,20.0]
[1729537563842,21.7108,166.32,166.21,20.0]
[1729537564000,21.7108,166.36,166.23,20.0]
[1729537564197,21.7108,166.36,166.22,23.776884]
[1729537564198,4.50711793,166.35,166.25,20.0]
[1729537564408,21.7108,166.36,166.25,20.0]
[1729537569116,23.776884,166.35,166.2,20.0]
[1729537569319,23.776884,166.35,166.2,23.776884]
[1729537569804,23.776884,166.35,166.2,31.40095889]
[1729537570007,21.7108,166.36,166.2,31.40095889]
[1729537570212,21.7108,166.36,166.19,16.4354]
[1729537570213,21.7108,166.36,166.22,23.776884]
[1729537570518,21.7108,166.36,166.25,20.0]
[1729537573716,21.7108,166.36,166.27,20.0]
[1729537574215,21.7108,166.36,166.25,20.0]
[1729537575227,23.776884,166.35,166.2,9.22392471]
[1729537575397,29.788384,166.35,166.2,9.22392471]
[1729537575598,29.788384,166.35,166.2,6.17262585]
[1729537576623,29.788384,166.35,166.23,20.0]
[1729537577295,23.776884,166.35,166.23,20.0]
[1729537577501,21.7108,166.36,166.25,20.0]
[1729537579607,21.7108,166.36,166.27,20.0]
[1729537580020,21.7108,166.36,166.29,20.0]
[1729537581516,22.1721,166.4,166.29,20.0]
[1729537582024,22.1721,166.4,166.31,20.0]
[1729537594113,22.1721,166.4,166.33,20.0]
[1729537596053,22.1721,166.4,166.29,20.0]
[1729537596245,22.1721,166.4,166.32,23.776884]
[1729537596414,22.1721,166.4,166.33,20.0]
[1729537596938,22.1721,166.4,166.28,23.776884]
[1729537597143,22.1721,166.4,166.29,20.0]
[1729537597331,22.1721,166.4,166.31,20.0]
[1729537597738,22.1721,166.4,166.27,20.0]
[1729537598136,22.1721,166.4,166.29,20.0]
[1729537599044,22.1721,166.4,166.31,20.0]
[1729537599420,23.7499,166.39,166.26,19.46637287]
[1729537599939,29.787484,166.38,166.26,16.4111]
[1729537600937,23.7499,166.39,166.26,16.4111]
[1729537601347,23.7499,166.39,166.27,23.776884]
[1729537602225,23.7499,166.39,166.28,20.0]
[1729537602939,6.0111,166.36,166.24,20.0]
[1729537603148,23.776884,166.36,166.24,20.0]
[1729537604852,23.0413,166.37,166.26,20.0]
[1729537606126,23.0413,166.37,166.28,20.0]
[1729537606440,23.0413,166.37,166.3,20.0]
[1729537608554,6.6155,166.37,166.3,20.0]
[1729537608728,17.74,166.39,166.32,20.0]
[1729537610249,17.74,166.39,166.29,23.776884]
[1729537610444,21.3152,166.41,166.3,20.0]
[1729537612033,27.3245,166.41,166.3,20.0]
[1729537614963,51.101384,166.41,166.4,0.2015653]
[1729537620665,23.776884,166.4,166.27,15.236]
[1729537621171,21.3152,166.41,166.27,15.236]
[1729537621474,27.3245,166.41,166.27,15.236]
[1729537621643,21.3152,166.41,166.27,15.236]
[1729537621846,21.3152,166.41,166.3,20.0]
[1729537624171,21.3152,166.41,166.32,20.0]
[1729537624359,21.3152,166.41,166.33,23.776884]
[1729537624858,21.3152,166.41,166.34,20.0]
[1729537625064,21.3152,166.41,166.32,20.0]
[1729537625264,21.3152,166.41,166.34,20.0]
[1729537626657,21.3152,166.41,166.32,20.0]
[1729537626976,21.3152,166.41,166.28,4.6104]
[1729537628162,21.3152,166.41,166.29,23.776884]
[1729537628367,21.3152,166.41,166.3,20.0]
[1729537630584,23.776884,166.4,166.24,1.04623462]
[1729537630884,6.0795,166.36,166.24,5.65663462]
[1729537631055,28.056,166.36,166.25,6.18929713]
[1729537631683,23.776884,166.35,166.25,6.18929713]
[1729537631869,6.0118,166.34,166.23,15.0972]
[1729537632380,6.0123,166.33,166.2,4.6104]
[1729537632572,22.1756,166.31,166.19,22.69229935]
[1729537633285,22.1756,166.31,166.2,7.49362781]
[1729537633858,6.0138,166.29,166.13,15.3328]
[1729537634061,23.776884,166.28,166.13,15.3328]
[1729537634308,23.776884,166.28,166.14,6.19207247]
[1729537634874,22.1756,166.31,166.15,7.49362781]
[1729537635269,22.1756,166.31,166.17,23.776884]
[1729537635474,22.1756,166.31,166.18,20.0]
[1729537635675,22.1756,166.31,166.19,23.776884]
[1729537635861,22.1756,166.31,166.2,20.0]
[1729537636064,22.1756,166.31,166.19,23.776884]
[1729537636286,22.1756,166.31,166.2,20.0]
[1729537637995,22.1756,166.31,166.2,36.2115]
[1729537638772,22.1756,166.31,166.21,23.776884]
[1729537638974,22.1756,166.31,166.23,23.776884]
[1729537639174,21.4219,166.35,166.24,20.0]
[1729537640302,21.4219,166.35,166.27,23.776884]
[1729537640466,21.4219,166.35,166.28,20.0]
[1729537641198,21.4219,166.35,166.23,20.0]
[1729537641372,21.4219,166.35,166.25,20.0]
[1729537643012,23.776884,166.34,166.14,23.38501485]
[1729537643184,23.776884,166.34,166.16,0.2]
[1729537643780,23.776884,166.34,166.16,6.94539132]
[1729537644202,23.776884,166.34,166.17,43.776884]
[1729537646878,23.776884,166.32,166.17,43.776884]
[1729537647185,29.789684,166.32,166.16,20.0]
[1729537647390,29.789684,166.32,166.15,27.30308132]
[1729537648015,29.789684,166.32,166.15,26.25653224]
[1729537648377,29.789684,166.32,166.16,23.776884]
[1729537648580,29.789684,166.32,166.18,23.776884]
[1729537648807,29.789684,166.32,166.19,20.0]
[1729537649100,29.789684,166.32,166.18,23.776884]
[1729537649402,29.789684,166.32,166.19,20.0]
[1729537649702,29.789684,166.32,166.17,20.0]
[1729537649908,29.789684,166.32,166.19,20.0]
[1729537651506,6.0129,166.31,166.19,20.0]
[1729537655000,23.776884,166.3,166.19,20.0]
[1729537655308,6.0132,166.3,166.19,20.0]
[1729537655488,23.776884,166.3,166.19,20.0]
[1729537656403,21.9208,166.33,166.19,20.0]
[1729537656608,6.0125,166.32,166.19,20.0]
[1729537656792,23.776884,166.31,166.19,20.0]
[1729537663395,6.0131,166.31,166.19,20.0]
[1729537663612,23.776884,166.28,166.16,6.20024418]
[1729537663921,22.4637,166.26,166.16,6.20024418]
[1729537665224,22.4637,166.26,166.17,43.776884]
[1729537666719,22.4637,166.26,166.17,20.0]
[1729537681045,22.4637,166.26,166.19,20.0]
[1729537686252,0.1,166.34,166.19,20.0]
[1729537686253,22.1794,166.31,166.19,20.0]
[1729537687448,22.1794,166.31,166.2,23.776884]
[1729537687652,22.1794,166.31,166.21,20.0]
[1729537689563,22.1794,166.31,166.23,20.0]
[1729537698062,22.1794,166.31,166.18,6.74539132]
[1729537698294,22.1794,166.31,166.19,20.0]
[1729537699648,22.1794,166.31,166.21,20.0]
[1729537702780,22.1794,166.31,166.19,20.0]
[1729537703993,23.776884,166.3,166.18,6.74539132]
[1729537705169,22.1794,166.31,166.19,23.776884]
[1729537705380,22.1794,166.31,166.2,6.74539132]
[1729537705547,22.1794,166.31,166.21,43.776884]
[1729537709787,22.1794,166.31,166.21,66.32047532]
[1729537709962,22.1794,166.31,166.23,43.776884]
[1729537726513,23.0601,166.35,166.23,50.52227532]
[1729537729481,23.0601,166.35,166.25,43.776884]
[1729537729692,23.0601,166.35,166.27,43.776884]
[1729537730087,21.7148,166.38,166.27,50.52227532]
[1729537731906,21.7148,166.38,166.27,43.776884]
[1729537732577,22.4151,166.44,166.33,20.0]
[1729537732794,0.1,166.53,166.32,23.776884]
[1729537732795,0.604841,166.47,166.39,20.0]
[1729537733011,0.604841,166.47,166.42,23.776884]
[1729537733215,0.604841,166.47,166.43,20.0]
[1729537733720,0.604841,166.47,166.39,20.0]
[1729537734286,0.604841,166.47,166.35,20.0]
[1729537734476,0.604841,166.47,166.37,20.0]
[1729537736002,0.604841,166.47,166.39,20.0]
[1729537737193,0.604841,166.47,166.41,20.0]
[1729537737401,0.604841,166.47,166.4,23.776884]
[1729537737402,0.604841,166.47,166.45,20.0]
[1729537738230,0.604841,166.47,166.46,43.776884]
[1729537738608,22.5596,166.54,166.47,20.0]
[1729537739225,22.5596,166.54,166.49,20.0]
[1729537739439,21.2931,166.58,166.49,20.0]
[1729537741171,6.0035,166.57,166.42,20.0]
[1729537741317,27.2962,166.58,166.42,20.0]
[1729537742091,23.776884,166.57,166.42,20.0]
[1729537742441,23.776884,166.57,166.44,20.0]
[1729537742925,23.776884,166.57,166.46,20.0]
[1729537745311,23.776884,166.55,166.41,10.59728983]
[1729537746816,23.776884,166.57,166.43,20.0]
[1729537747014,23.776884,166.57,166.45,20.0]
[1729537749318,23.776884,166.57,166.43,20.0]
[1729537749519,23.776884,166.53,166.35,4.7104]
[1729537749702,21.7451,166.51,166.36,15.2567]
[1729537750017,27.7508,166.51,166.36,15.2567]
[1729537750192,23.776884,166.5,166.36,15.2567]
[1729537750519,6.0065,166.49,166.36,15.2567]
[1729537750730,23.776884,166.47,166.35,7.46761354]
[1729537751015,15.8555,166.45,166.32,15.3993]
[1729537751216,21.8634,166.45,166.31,6.27420256]
[1729537751415,21.8634,166.45,166.31,13.7418161]
[1729537751416,15.8555,166.45,166.31,13.7418161]
[1729537751919,15.8555,166.45,166.32,7.46761354]
[1729537752513,15.8555,166.45,166.33,20.0]
[1729537752690,15.8555,166.45,166.33,7.46761354]
[1729537752895,15.8555,166.45,166.34,20.0]
[1729537753418,15.8555,166.45,166.35,23.776884]
[1729537753799,15.8555,166.45,166.36,20.0]
[1729537755592,15.8555,166.45,166.38,20.0]
[1729537756203,15.8555,166.45,166.34,20.0]
[1729537756714,15.8555,166.45,166.36,20.0]
[1729537762228,15.8555,166.45,166.37,23.776884]
[1729537762406,15.8555,166.45,166.38,20.0]
[1729537764337,16.2236,166.5,166.39,23.776884]
[1729537764544,16.2236,166.5,166.4,20.0]
[1729537765059,16.2236,166.5,166.42,20.0]
[1729537765355,16.2236,166.5,166.4,20.0]
[1729537765661,16.2236,166.5,166.41,23.776884]
[1729537765869,16.2236,166.5,166.42,20.0]
[1729537766170,16.2236,166.5,166.4,20.0]
[1729537766364,16.2236,166.5,166.42,20.0]
[1729537767051,21.8093,166.55,166.42,20.0]
[1729537767238,27.8135,166.55,166.42,20.0]
[1729537767751,21.8093,166.55,166.42,20.0]
[1729537767943,21.8093,166.55,166.46,20.0]
[1729537768630,21.8093,166.55,166.42,23.776884]
[1729537768837,21.8093,166.55,166.45,20.0]
[1729537769020,21.8093,166.55,166.47,20.0]
[1729537769331,22.5686,166.59,166.47,20.0]
[1729537770324,23.776884,166.58,166.47,20.0]
[1729537770723,6.0035,166.57,166.47,20.0]
[1729537770937,6.0037,166.57,166.45,20.0]
[1729537771124,22.3529,166.54,166.45,20.0]
[1729537771321,22.3529,166.54,166.41,15.1636]
[1729537772735,22.3529,166.54,166.42,20.0]
[1729537774540,6.0055,166.52,166.42,20.0]
[1729537774729,29.781884,166.53,166.42,20.0]
[1729537779016,29.781884,166.53,166.38,3.0310658]
[1729537779240,29.781884,166.53,166.39,23.776884]
[1729537779422,29.781884,166.53,166.38,23.776884]
[1729537779622,29.781884,166.53,166.39,20.0]
[1729537779887,29.781884,166.53,166.41,20.0]
[1729537780429,29.781884,166.53,166.39,20.0]
[1729537780626,29.781884,166.53,166.41,20.0]
[1729537782124,23.776884,166.53,166.41,20.0]
[1729537788833,23.776884,166.53,166.38,20.0]
[1729537789148,23.776884,166.53,166.37,16.0515]
[1729537789149,6.3774,166.5,166.4,20.0]
[1729537790226,6.3774,166.5,166.38,20.0]
[1729537794928,15.5341,166.49,166.38,20.0]
[1729537800760,17.74,166.47,166.37,20.0]
[1729537802449,15.5341,166.49,166.37,20.0]
[1729537802656,15.5341,166.49,166.36,16.8466572]
[1729537802657,6.0071,166.47,166.36,13.74108982]
[1729537802966,29.783584,166.48,166.34,15.3323]
[1729537803542,29.783584,166.48,166.34,22.79991354]
[1729537804233,17.74,166.46,166.35,43.776884]
[1729537806358,29.783684,166.48,166.35,43.776884]
[1729537806969,12.5258,166.47,166.35,43.776884]
[1729537807433,6.5188,166.47,166.35,43.776884]
[1729537807939,6.0083,166.44,166.3,16.4025]
[1729537808347,23.776884,166.45,166.3,25.76991366]
[1729537808549,6.0142,166.41,166.3,25.76991366]
[1729537808861,6.0142,166.41,166.3,19.49322637]
[1729537809447,6.0142,166.41,166.31,20.0]
[1729537809648,21.6116,166.46,166.32,23.776884]
[1729537809861,21.6116,166.46,166.35,20.0]
[1729537815762,6.0078,166.45,166.31,20.0]
[1729537816763,23.776884,166.45,166.33,20.0]
[1729537816952,6.0091,166.42,166.3,19.49322637]
[1729537817152,22.3435,166.41,166.3,19.49322637]
[1729537818170,22.3435,166.41,166.31,23.776884]
[1729537818744,22.3435,166.41,166.32,20.0]
[1729537819172,17.74,166.4,166.32,20.0]
[1729537819564,17.74,166.4,166.3,19.49322637]
[1729537819565,17.74,166.4,166.34,20.0]
[1729537820363,22.3435,166.41,166.34,20.0]
[1729537828553,22.3435,166.41,166.31,20.0]
[1729537829167,22.3435,166.41,166.3,16.4025]
[1729537829554,22.3435,166.41,166.3,23.776884]
[1729537830975,22.3435,166.41,166.31,20.0]
[1729537832276,17.74,166.39,166.31,20.0]
[1729537832974,17.74,166.39,166.29,20.0]
[1729537833178,17.74,166.39,166.28,7.46761354]
[1729537833179,23.75,166.39,166.28,20.0]
[1729537834149,6.01,166.39,166.27,20.0]
[1729537835381,29.786584,166.4,166.27,27.46761354]
[1729537837177,17.74,166.38,166.27,27.46761354]
[1729537838285,29.786584,166.4,166.27,27.46761354]
[1729537841289,22.3435,166.41,166.29,20.0]
[1729537846875,22.3435,166.41,166.3,23.776884]
[1729537847078,22.3435,166.41,166.31,20.0]
[1729537853268,23.776884,166.4,166.29,20.0]
[1729537853593,6.01,166.39,166.27,20.0]
[1729537855174,17.74,166.37,166.27,20.0]
[1729537855377,22.103,166.36,166.24,13.49061354]
[1729537855785,28.1141,166.36,166.24,6.023]
[1729537857197,28.1141,166.36,166.25,20.0]
[1729537858181,22.103,166.36,166.25,20.0]
[1729537858388,22.103,166.36,166.24,6.023]
[1729537858389,22.103,166.36,166.27,20.0]
[1729537859089,22.103,166.36,166.28,23.776884]
[1729537859295,22.103,166.36,166.29,20.0]
[1729537865491,22.103,166.36,166.24,13.49061354]
[1729537866677,22.103,166.36,166.25,20.0]
[1729537866895,22.103,166.36,166.27,20.0]
[1729537867299,22.103,166.36,166.25,20.0]
[1729537868577,28.114,166.36,166.25,20.0]
[1729537871100,22.103,166.36,166.25,20.0]
[1729537881622,22.103,166.36,166.27,20.0]
[1729537881920,22.103,166.36,166.25,20.0]
[1729537888321,22.103,166.36,166.27,20.0]
[1729537888524,6.6408,166.36,166.29,20.0]
[1729537888704,21.7756,166.4,166.29,20.0]
[1729537893419,21.7756,166.4,166.31,20.0]
[1729537893721,21.7756,166.4,166.31,27.46761354]
[1729537897032,21.7756,166.4,166.3,26.7789635]
[1729537897033,21.7756,166.4,166.33,20.0]
[1729537897418,22.8275,166.44,166.35,20.0]
[1729537897602,22.8275,166.44,166.34,23.776884]
[1729537897603,22.8275,166.44,166.37,20.0]
[1729537897807,22.8275,166.44,166.37,27.46761354]
[1729537898808,22.6181,166.48,166.37,27.46761354]
[1729537899033,22.6181,166.48,166.38,23.776884]
[1729537899330,22.6181,166.48,166.39,20.0]
[1729537900321,22.6181,166.48,166.41,20.0]
[1729537907028,21.7769,166.53,166.43,20.0]
[1729537909235,21.7769,166.53,166.45,20.0]
[1729537910444,21.7769,166.53,166.43,20.0]
[1729537914037,21.1511,166.57,166.47,20.0]
[1729537914541,12.0167,166.56,166.41,20.0]
[1729537914756,12.0167,166.56,166.43,20.0]
[1729537915640,29.781084,166.55,166.43,20.0]
[1729537915958,21.9689,166.54,166.43,20.0]
[1729537916342,15.9643,166.54,166.41,20.0]